Cogmind - Beta 13 @@@ ROGUE MODE // 2024.05.03 @ 13:36:04 Player: Barbarossa Result: Destroyed by L-41 Fighter with Axe Performance ------------- Evolutions (4) 2000 Regions Visited (7) 1400 Robots Destroyed (171) 855 Value Destroyed (5819) 5819 Prototype IDs (8) 160 Alien Tech Used (0) 0 Bonus (366) 366 TOTAL SCORE: 10600 Bonus ------- High Alert Combat Kills 208 Follower Combat Kills 173 Friendly Fire -15 Cogmind --------- Core Integrity 0/850 Matter 290/300 Energy 310/310 System Corruption 0% Temperature Cool (0) Movement Rolling (145) Ox3 Location -6/Factory Parts ------- > --- POWER (1) -------- Heavy Deuterium Engine > --- PROPULSION (4) --- Armored Treads Armored Treads Armored Huge Wheel > --- UTILITY (6) ------ Advanced Heat Sink Huge Storage Unit Advanced Signal Interpreter Hacking Suite System Guard System Guard > --- WEAPON (4) ------- Heavy Laser > --- INVENTORY (25) --- Enhanced Nuclear Core Light Angular Momentum Engine Armored Treads Armored Treads Armored Treads Wheel Advanced Heat Sink Matter Compressor (250) Matter Compressor (250) Triangulator Advanced Sensor Array Improved Targeting Computer Improved Targeting Computer Advanced Targeting Computer Advanced Targeting Computer Cloaking Device Hardened Heavy Armor Plating Hacking Suite System Guard Long-range Tractor Beam Improved Datajack Plasma Cutter Peak State ------------ > --- POWER ------------ Cooled Deuterium Engine > --- PROPULSION ------- Medium Treads Improved Medium Treads Armored Huge Wheel > --- UTILITY ---------- Advanced Heat Sink Huge Storage Unit Advanced Signal Interpreter Transmission Jammer Hacking Suite System Shield > --- WEAPON ----------- Heavy Laser Heavy Plasma Cannon Heavy Machine Gun Magnetic Acceleration Cannon > --- INVENTORY -------- Armored Treads Armored Treads Armored Treads Armored Treads Medium Treads Wheel Armored Huge Wheel Advanced Heat Sink Advanced Heat Sink Disposable Heat Sink Matter Compressor Matter Compressor Triangulator Advanced Sensor Array Improved Targeting Computer Improved Targeting Computer Advanced Targeting Computer Advanced Targeting Computer Hacking Suite Long-range Tractor Beam Gatling Laser Datajack Plasma Cutter [Rating: 70] Favorites ----------- Power Cooled Deuterium Engine Engine Cooled Deuterium Engine Power Core Enhanced Nuclear Core Propulsion Wheel Treads Improved Treads Leg Aluminum Leg Wheel Wheel Hover Unit Hover Unit Utility Huge Storage Unit Device Advanced Heat Sink Storage Huge Storage Unit Processor Advanced Signal Interpreter Hackware Hacking Suite Protection Heavy Armor Plating Weapon Heavy Laser Energy Gun Heavy Laser Energy Cannon Heavy Plasma Cannon Ballistic Gun Heavy Assault Rifle Ballistic Cannon Magnetic Acceleration Cannon Special Weapon Welding Torch Special Melee Weapon Datajack Build | -11 -10 -9 -8 -7 -6 -6 -6 ------- Run | Yrd Mat Mat Mat Fac Fac Was Fac Slots Evolved 8 | . . 2 2 2 2 . . Power . | . . . . . . . . Propulsion 2 | . . 2 . . . . . Utility 4 | . . . 1 1 2 . . Weapon 2 | . . . 1 1 . . . Parts Attached 179 | . 7 31 34 33 29 . 45 Power 17 | . . 4 4 1 2 . 6 Engine 15 | . . 4 4 1 2 . 4 Core 2 | . . . . . . . 2 Reactor . | . . . . . . . . Propulsion 56 | . 4 14 13 6 10 . 9 Treads 29 | . . 6 8 2 6 . 7 Leg . | . . . . . . . . Wheel 24 | . 2 7 5 4 4 . 2 Hover 3 | . 2 1 . . . . . Flight . | . . . . . . . . Utility 46 | . 1 5 8 10 5 . 17 Device 18 | . . . 3 4 1 . 10 Storage 5 | . . 2 . 1 . . 2 Processor 5 | . 1 . . . . . 4 Hackware 3 | . . . . . 2 . 1 Protection 15 | . . 3 5 5 2 . . Artifact . | . . . . . . . . Weapon 60 | . 2 8 9 16 12 . 13 Energy Gun 26 | . 2 3 4 4 4 . 9 Energy Cannon 1 | . . . . . . . 1 Ballistic Gun 25 | . . 5 4 9 6 . 1 Ballistic Cannon 3 | . . . . . 1 . 2 Launcher . | . . . . . . . . Special Weapon 1 | . . . . 1 . . . Impact Weapon . | . . . . . . . . Slashing Weapon . | . . . . . . . . Piercing Weapon . | . . . . . . . . Special Melee Weapon 4 | . . . 1 2 1 . . Unidentified Prototypes 8 | . . 4 1 1 . . 2 Parts Lost 42 | . . 8 10 2 6 5 11 Power 4 | . . 1 2 . . . 1 Propulsion 18 | . . 5 4 1 4 2 2 Utility 11 | . . 2 2 1 2 2 2 Weapon 9 | . . . 2 . . 1 6 Highest Loss Streak 5 | . . 3 3 2 3 5 4 To Critical Strikes 1 | . . . . . . 1 . Average Slot Usage (%) 91 | . 88 98 98 92 90 50 84 Engine 7 | . 14 10 9 7 6 2 3 Treads 15 | . . 21 18 14 12 5 12 Wheel 13 | . 3 20 16 14 11 6 5 Device 6 | . . . 8 8 6 5 7 Storage 7 | . 14 11 9 7 6 6 6 Processor 3 | . 4 7 . . . . 11 Hackware 4 | . . . . . 13 13 12 Protection 4 | . . 3 8 6 4 . . Energy Gun 12 | . 12 9 18 15 10 2 8 Ballistic Gun 10 | . 14 12 8 15 11 5 2 Ballistic Cannon 1 | . . . . . 3 2 5 Naked Turns . | . . . . . . . . Heaviest Build 130 | 12 12 97 108 124 130 119 120 Greatest Support 32 | 20 32 26 26 26 28 28 28 Greatest Overweight (x) 12 | . . 9 10 12 7 4 4 Average Overweight (x) 4 | . . 3 5 5 5 2 3 Largest Inventory Capacity 25 | 8 8 25 25 25 25 25 25 Average Capacity 24 | 8 8 23 25 25 25 25 25 Most Carried 25 | 6 8 25 25 25 25 25 25 Average Carried 23 | 6 7 21 23 24 24 25 23 Final Capacity 25 | 8 8 25 25 25 25 25 25 Final Carried 25 | 6 8 24 25 25 25 25 23 Class Distribution -------------------- 32% | Tank 19% | Scavenger-Tank 11% | Hacker-Gunner 10% | Mutant 8% | Scavenger-Mutant 7% | Scavenger-Gunner 5% | Hacker-Tank Dominant Class ---------------- Mutant | -10/Materials Scavenger-Mutant | -9/Materials Tank | -8/Materials Tank | -7/Factory Scavenger-Tank | -6/Factory Hacker-Mutant | -6/Waste Hacker-Gunner | -6/Factory Resources | -11 -10 -9 -8 -7 -6 -6 -6 ----------- Run | Yrd Mat Mat Mat Fac Fac Was Fac Matter Collected 5119 | 200 427 583 558 690 953 . 1708 Remotely . | . . . . . . . . Salvage Created 6891 | 23 81 1285 1729 804 1467 . 1502 Parts 389 | 3 9 89 80 50 70 . 88 Haulers Intercepted 10 | . . 5 1 2 1 . 1 Recyclers Shooed 7 | . . 1 2 . 1 . 3 Parts Field Recycled . | . . . . . . . . Retrieved Matter . | . . . . . . . . Parts Self-Destructed . | . . . . . . . . Prevented . | . . . . . . . . Kills | -11 -10 -9 -8 -7 -6 -6 -6 ------- Run | Yrd Mat Mat Mat Fac Fac Was Fac Combat Hostiles Destroyed 127 | . 3 26 31 14 27 . 26 Guns 98 | . 3 25 29 14 17 . 10 Cannons 23 | . . . . . 10 . 13 AOE 1 | . . 1 . . . . . Classes Destroyed 17 | 1 2 6 4 2 1 . 1 Worker 9 | . . . 2 3 2 . 2 Builder 10 | . . . 3 3 2 . 2 Tunneler 1 | 1 . . . . . . . Hauler 10 | . . 5 1 2 1 . 1 Recycler 3 | . . 2 . . . . 1 Mechanic 2 | . . 1 . . . . 1 Operator 3 | . . 2 1 . . . . Watcher 6 | . 1 2 1 1 . . 1 Swarmer 32 | . 3 15 4 2 5 . 3 Grunt 50 | . . 4 16 3 16 . 11 Brawler 3 | . . . 1 . 1 . 1 Duelist 1 | . . . . . 1 . . Sentry 20 | . . 7 6 3 2 . 2 Specialist 4 | . . . 4 . . . . Hunter 2 | . . . . 1 . . 1 Programmer 13 | . . . . 5 2 . 6 Heavy 2 | . . . . . . . 2 Best Kill Streak 9 | 1 4 6 6 2 9 . 4 Combat Bots Only 7 | . 3 5 6 2 7 . 4 Max Kills in Single Turn 2 | 1 1 2 2 1 2 . 2 Gunslinging 1 | . . 1 . . . . . Exploded 1 | . . 1 . . . . . Melee . | . . . . . . . . Uniques/NPCs Destroyed . | . . . . . . . . Combat | -11 -10 -9 -8 -7 -6 -6 -6 -------- Run | Yrd Mat Mat Mat Fac Fac Was Fac Hostile Shots Fired 849 | . 13 155 189 122 165 8 197 Missed 237 | . 8 40 51 47 41 . 50 Damage Taken 9735 | . 34 1340 1924 1085 1861 324 3167 Core 1261 | . . 178 196 23 146 79 639 Absorbed by Shields 10 | . . . . . . 10 . Regen/Repaired (Parts) 895 | . 21 177 54 406 75 . 162 Core Remaining (%) 83 | 100 100 55 64 96 . . . Volleys Fired 412 | 4 12 116 96 48 58 . 78 Largest 4 | 2 2 2 3 4 4 . 4 Hottest 292 | 60 60 88 148 205 230 . 292 Shots Fired 1164 | 8 23 225 259 190 229 . 230 Gun 1039 | 8 23 225 259 190 197 . 137 Cannon 125 | . . . . . 32 . 93 Launcher . | . . . . . . . . Special . | . . . . . . . . Kinetic 529 | 4 12 127 67 96 137 . 86 Thermal 625 | 4 11 98 192 94 92 . 134 Explosive . | . . . . . . . . Electromagnetic 10 | . . . . . . . 10 Robot Hit Streak 15 | 4 4 10 10 12 13 . 15 Robot Miss Streak 9 | 2 4 5 4 9 4 . 4 Penetration Max 1 | . . . . 1 1 . 1 Secondary Targets 18 | . . 6 10 . 2 . . Max Gunslinging Chain 1 | . . 1 1 . 1 . . Shots Hit Robots 695 | 5 8 131 160 107 141 . 143 Core Hits 352 | 1 6 59 66 68 79 . 73 Critical Kills 2 | . . . . . 1 . 1 Critical Parts Destroyed . | . . . . . . . . Critical Strikes 27 | . . 1 12 4 3 . 7 Burn 18 | . . 1 12 4 . . 1 Meltdown 1 | . . . . . . . 1 Destroy 2 | . . . . . 2 . . Blast 6 | . . . . . 1 . 5 Melee Attacks . | . . . . . . . . Impact . | . . . . . . . . Slashing . | . . . . . . . . Piercing . | . . . . . . . . Sneak Attacks . | . . . . . . . . Combat Hostiles . | . . . . . . . . Follow-up Attacks . | . . . . . . . . Damage Inflicted 13896 | 46 85 1786 2773 2081 3006 . 4119 Guns 11069 | 46 85 1786 2773 2081 2414 . 1884 Cannons 2708 | . . . . . 592 . 2116 Explosions 119 | . . . . . . . 119 Melee . | . . . . . . . . Ramming . | . . . . . . . . Kinetic 6158 | 12 21 911 615 904 1781 . 1914 Thermal 7632 | 34 64 875 2158 1177 1225 . 2099 Explosive . | . . . . . . . . Electromagnetic 106 | . . . . . . . 106 Impact . | . . . . . . . . Slashing . | . . . . . . . . Piercing . | . . . . . . . . Highest Corruption 18 | . 1 . . 4 4 18 18 Average Corruption 5 | . 1 . . 1 2 13 10 Corruption Purged 11 | . . . . 4 . . 7 Corruption Blocked . | . . . . . . . . Effects 106 | . 1 . . 20 15 9 61 Message Errors 19 | . . . . 9 3 2 5 Matter Fused 29 | . . . . 2 6 . 21 Heat Flow Errors 11 | . . . . 1 1 1 8 Energy Discharges 12 | . 1 . . 2 1 1 7 Parts Rejected 2 | . . . . 1 . 1 . Parts Fused 1 | . . . . . . . 1 Data Loss (minor) 15 | . . . . 4 1 1 9 Data Loss (major) 4 | . . . . 1 1 . 2 Misfires 3 | . . . . . . . 3 Alerts 3 | . . . . . 1 . 2 Misdirections 4 | . . . . . . 3 1 Weapon Failures 3 | . . . . . 1 . 2 Overload Shots . | . . . . . . . . Overflow Damage 138 | . . . . . . . 138 Projectiles 89 | . . . . . . . 89 Explosions 49 | . . . . . . . 49 Melee . | . . . . . . . . Knockbacks 17 | . . . . . 2 . 15 Impact . | . . . . . . . . Kinetic 11 | . . . . . 2 . 9 Secondary 6 | . . . . . . . 6 Self-Inflicted Damage . | . . . . . . . . Shots . | . . . . . . . . Rammed . | . . . . . . . . Targets Rammed . | . . . . . . . . Kicked . | . . . . . . . . Crushed . | . . . . . . . . Highest Temperature 670 | 20 78 312 462 105 358 143 670 Average Temperature 97 | 15 33 52 118 37 64 87 172 Received Heat Transfer 2547 | . . 339 792 120 564 . 732 Effects 24 | . . . 5 . 1 . 18 Shutdowns 4 | . . . 1 . . . 3 Energy Bleed 4 | . . . 3 . . . 1 Interference 7 | . . . 1 . . . 6 Matter Decay 4 | . . . . . . . 4 Short Circuit 1 | . . . . . . . 1 Damage (minor) 3 | . . . . . 1 . 2 Damage (core) 1 | . . . . . . . 1 Siege Activations . | . . . . . . . . Robots Corrupted . | . . . . . . . . Combat Hostiles . | . . . . . . . . Parts Fried 1 | . . . . . . . 1 Impact Corruptions 1 | . . . . . . . 1 Robots Melted 4 | . . . 2 . . . 2 Combat Hostiles 4 | . . . 2 . . . 2 Parts Melted 38 | . . 2 16 9 2 . 9 Heat Transferred 16881 | 75 150 2031 5476 2638 2522 . 3989 Parts Sabotaged . | . . . . . . . . Parts Stolen . | . . . . . . . . Parts Stripped . | . . . . . . . . Power Chain Reactions . | . . . . . . . . Alert | -11 -10 -9 -8 -7 -6 -6 -6 ------- Run | Yrd Mat Mat Mat Fac Fac Was Fac Peak Influence 613 | 5 111 460 613 290 420 147 496 Initial 203 | . 3 46 194 203 20 147 67 Average 218 | 1 46 259 313 133 178 117 285 Maximum Alert Level 2 | . . 2 2 1 2 . 2 Low Security (%) 49 | 100 100 26 30 69 68 100 29 Level 1 35 | . . 62 34 30 18 . 43 Level 2 14 | . . 11 34 . 12 . 26 Level 3 . | . . . . . . . . Level 4 . | . . . . . . . . Level 5 . | . . . . . . . . High Security . | . . . . . . . . Max Security . | . . . . . . . . Squads Dispatched 35 | . . 1 5 9 8 . 12 Investigation 5 | . . . . 2 . . 3 Extermination 10 | . . . . 5 2 . 3 Reinforcement 13 | . . 1 4 1 3 . 4 Assault 2 | . . . . . . . 2 Garrison 5 | . . . 1 1 3 . . Intercept . | . . . . . . . . Searches Triggered . | . . . . . . . . Construction Impeded 2 | . . . . . 1 . 1 Haulers Reinforced 3 | . . . . 1 2 . . Active Scanning Responses . | . . . . . . . . Cargo Convoy Interrupts . | . . . . . . . . Stealth | -11 -10 -9 -8 -7 -6 -6 -6 --------- Run | Yrd Mat Mat Mat Fac Fac Was Fac Distress Signals 10 | . . 5 3 2 . . . Communications Jammed 16 | . . . . . . . 16 Distress Signals 15 | . . . . . . . 15 Times Spotted 191 | . 6 40 42 25 28 5 45 Peak Tracking Total 9 | . 4 4 9 3 6 5 6 Tactical Retreats 12 | . . 4 3 1 1 . 3 Traps | -11 -10 -9 -8 -7 -6 -6 -6 ------- Run | Yrd Mat Mat Mat Fac Fac Was Fac Traps Triggered 15 | . 3 . 1 6 2 . 3 Indirectly . | . . . . . . . . Trap Hack Attempts 27 | . . . 11 9 7 . . Triggered . | . . . . . . . . Disarmed 1 | . . . . 1 . . . Reprogrammed 3 | . . . 1 1 1 . . Reused . | . . . . . . . . Traps Extracted . | . . . . . . . . Installed . | . . . . . . . . Triggered . | . . . . . . . . Machines | -11 -10 -9 -8 -7 -6 -6 -6 ---------- Run | Yrd Mat Mat Mat Fac Fac Was Fac Machines Disabled 15 | . . . 2 1 4 . 8 Max in Single Turn 2 | . . . 2 1 1 . 2 Garrison Access 3 | . . . 1 1 1 . . Machines Repaired . | . . . . . . . . Machines Dismantled . | . . . . . . . . Machines Sabotaged . | . . . . . . . . Overloaded Fab Kills . | . . . . . . . . Hacking | -11 -10 -9 -8 -7 -6 -6 -6 --------- Run | Yrd Mat Mat Mat Fac Fac Was Fac Machines Accessed 39 | . 6 4 7 13 2 . 7 Terminals 17 | . 4 2 4 6 . . 1 Fabricators 2 | . . . . 1 . . 1 Repair Stations 9 | . 1 1 2 3 1 . 1 Recycling Units 3 | . 1 1 . . . . 1 Scanalyzers 4 | . . . . 2 . . 2 Garrison Access 4 | . . . 1 1 1 . 1 Total Hacks 150 | . 15 18 17 60 6 . 34 Successful 95 | . 9 12 8 38 5 . 23 Failed 55 | . 6 6 9 22 1 . 11 Catastrophic 9 | . . . 5 2 . . 2 Database Lockouts . | . . . . . . . . Manual 40 | . 8 8 8 16 . . . Terminals 46 | . 10 9 8 18 . . 1 Fabricators 6 | . . . . 2 . . 4 Repair Stations 38 | . 2 8 5 16 4 . 3 Recycling Units 8 | . 3 1 . . . . 4 Scanalyzers 42 | . . . . 23 . . 19 Garrison Access 10 | . . . 4 1 2 . 3 Terminal Hacks 13 | . 3 4 1 4 . . 1 Open Door 1 | . . . . . . . 1 Branch Access Points 1 | . . 1 . . . . . Alert Level 1 | . 1 . . . . . . Unreport Threat 4 | . 1 . 1 2 . . . Locate Traps 5 | . 1 2 . 2 . . . Zone Layout 1 | . . 1 . . . . . Fabricator Hacks 2 | . . . . 1 . . 1 Network Status 2 | . . . . 1 . . 1 Repair Station Hacks 29 | . 2 6 4 11 4 . 2 Scan Component 15 | . 1 3 2 6 2 . 1 Repair 14 | . 1 3 2 5 2 . 1 Recycling Unit Hacks 4 | . 2 1 . . . . 1 Recycle Component 1 | . 1 . . . . . . Report Inventory 3 | . 1 1 . . . . 1 Scanalyzer 36 | . . . . 18 . . 18 Insert Component 16 | . . . . 8 . . 8 Analyze 20 | . . . . 10 . . 10 Garrison Access Hacks 3 | . . . 1 1 1 . . Seal Access 3 | . . . 1 1 1 . . Unauthorized Hacks 8 | . 2 1 2 3 . . . Terminals 8 | . 2 1 2 3 . . . Botnet 8 | . 2 1 2 3 . . . Fabricators . | . . . . . . . . Repair Stations . | . . . . . . . . Recycling Units . | . . . . . . . . Scanalyzers . | . . . . . . . . Garrison Access . | . . . . . . . . Data Cores Recovered 2 | . . 1 1 . . . . Used 1 | . . . 1 . . . . Hacking Detections 31 | . 5 3 7 10 1 . 5 Full Trace Events 5 | . 1 1 . 1 . . 2 Feedback Events . | . . . . . . . . Feedback Blocked . | . . . . . . . . Robot Schematics Acquired . | . . . . . . . . Robots Built . | . . . . . . . . Authchips . | . . . . . . . . Time . | . . . . . . . . Total Robot Build Rating . | . . . . . . . . Part Schematics Acquired 15 | . . . . 8 . . 7 Parts Built . | . . . . . . . . Authchips . | . . . . . . . . Time . | . . . . . . . . Total Part Build Rating . | . . . . . . . . Parts Repaired 13 | . 1 3 2 5 1 . 1 Time 441 | . 26 84 51 184 82 . 14 Parts Recycled 1 | . 1 . . . . . . Recycled Matter . | . . . . . . . . Retrieved Matter . | . . . . . . . . Retrieved Components . | . . . . . . . . Parts Scanalyzed 16 | . . . . 8 . . 8 Part Schematics Acquired 15 | . . . . 8 . . 7 Parts Damaged . | . . . . . . . . Bothacking | -11 -10 -9 -8 -7 -6 -6 -6 ------------ Run | Yrd Mat Mat Mat Fac Fac Was Fac Used RIF Installer . | . . . . . . . . Robots Hacked . | . . . . . . . . Non-combat . | . . . . . . . . Combat . | . . . . . . . . Robot Hacks Applied . | . . . . . . . . Relay Couplers Released . | . . . . . . . . Fabnet Peak Effective % . | . . . . . . . . Robots Rewired . | . . . . . . . . Allies Hacked . | . . . . . . . . Hacks Repelled . | . . . . . . . . Allies | -11 -10 -9 -8 -7 -6 -6 -6 -------- Run | Yrd Mat Mat Mat Fac Fac Was Fac Total Allies 3 | . . . . 3 . . . Largest Group 3 | . . . . 3 . . . Highest-Rated Group 93 | . . . . 93 . . . Highest-Rated Ally 31 | . . . . 31 . . . Total Orders . | . . . . . . . . Ally Attacks 55 | . . . . 55 . . . Total Damage 666 | . . . . 666 . . . Kills 6 | . . . . 6 . . . Allies Corrupted . | . . . . . . . . Allies Melted . | . . . . . . . . Intel | -11 -10 -9 -8 -7 -6 -6 -6 ------- Run | Yrd Mat Mat Mat Fac Fac Was Fac Robot Analysis Total . | . . . . . . . . Derelict Logs Recovered . | . . . . . . . . Drone Launches . | . . . . . . . . Drone Recoveries . | . . . . . . . . Exploration | -11 -10 -9 -8 -7 -6 -6 -6 ------------- Run | Yrd Mat Mat Mat Fac Fac Was Fac Turns Passed 9574 | 12 266 1472 1689 2806 1196 170 1963 Spaces Moved 4661 | 1 295 737 743 1281 478 121 1005 Core . | . . . . . . . . Treads 7 | . . . . . 4 . 3 Legs 15 | 1 14 . . . . . . Wheels 4317 | . 29 667 743 1281 474 121 1002 Hover 322 | . 252 70 . . . . . Flight . | . . . . . . . . Fastest Speed 56 | 120 56 80 135 150 150 130 145 Average Speed 151 | 120 63 132 163 170 170 141 150 Slowest Speed 480 | 120 120 215 230 260 480 160 400 Overloaded Moves . | . . . . . . . . Propulsion Burnouts . | . . . . . . . . Robots Hopped . | . . . . . . . . Cave-ins Triggered . | . . . . . . . . Exploration Rate (%) 40 | 2 50 49 64 35 13 89 22 Regions Visited 7 Branch Regions . Pre-discovered Areas . | . . . . . . . . Known Exits Taken 1 | . 1 . . . . . . Unknown Exits Taken 4 | 1 . 1 1 1 . . . Scrap Searched . | . . . . . . . . Spaces Dug . | . . . . . . . . Terrain Destroyed 90 | . . . . . 11 . 79 Melee . | . . . . . . . . Projectile 44 | . . . . . 11 . 33 AOE 46 | . . . . . . . 46 Terrain Rammed . | . . . . . . . . Walls Destroyed . | . . . . . . . . Machines Disabled . | . . . . . . . . Actions | -11 -10 -9 -8 -7 -6 -6 -6 --------- Run | Yrd Mat Mat Mat Fac Fac Was Fac Total 6281 | 4 351 1022 1010 1791 712 120 1271 Wait 758 | . 29 81 85 371 103 . 89 Move 4655 | . 294 736 742 1280 478 120 1005 Hop . | . . . . . . . . Pick Up 123 | . 6 33 24 20 15 . 25 Fast Attach 51 | . 3 12 4 10 6 . 16 Attach 51 | . . 9 13 6 6 . 17 Detach 1 | . . . . 1 . . . Swap 78 | . 4 11 17 17 17 . 12 Drop 117 | . 3 24 18 29 22 . 21 Fire 412 | 4 12 116 96 48 58 . 78 Melee . | . . . . . . . . Ram . | . . . . . . . . Kick . | . . . . . . . . Crush . | . . . . . . . . Escape Stasis 8 | . . . . . . . 8 Rewire . | . . . . . . . . Trap 27 | . . . 11 9 7 . . Miscellaneous . | . . . . . . . . Route ------- -11/Scrapyard -10/Materials -9/Materials (discovered 4 exits: *Mat / *Min x2 / *Sto) -8/Materials (discovered 2 exits: *Fac x2) -7/Factory (discovered 2 exits: *Fac / [*Low]) -6/Factory -6/Waste -6/Factory (discovered 2 exits: *Low / *Ext) History --------- Turn | Location | Event 13 | -11/Scrapyard | Discovered new exit (range 0) 13 | -11/Scrapyard | Entered Materials 261 | -10/Materials | Repaired Sml. Laser 277 | -10/Materials | Discovered new exit (range 4) 279 | -10/Materials | Identified exit to Materials 279 | -10/Materials | Entered another Materials area 279 | -9/Materials | Evolved 2 slots: Propulsion x2 301 | -9/Materials | Build established: Mutant 397 | -9/Materials | Discovered new exit (range 8) 563 | -9/Materials | Repaired Lgt. Treads 996 | -9/Materials | Repaired Wheel 1030 | -9/Materials | Repaired Imp. Ion Engine 1252 | -9/Materials | Discovered new exit (range 15) 1338 | -9/Materials | Build established: Scavenger-Mutant 1392 | -9/Materials | Identified exit to Mines 1392 | -9/Materials | Identified exit to Storage 1414 | -9/Materials | Discovered new exit (range 16) 1587 | -9/Materials | Lost 3 parts (2n1u) 1751 | -9/Materials | Entered another Materials area 1751 | -8/Materials | Evolved 2 slots: Utility x1, Weapon x1 2060 | -8/Materials | Repaired Wheel 2142 | -8/Materials | Discovered new exit (range 5) 2210 | -8/Materials | Build established: Tank 2288 | -8/Materials | Repaired Lrn. Tractor Beam 2694 | -8/Materials | Garrison activated, responded to threat 3005 | -8/Materials | Lost 3 parts (1p2n) 3109 | -8/Materials | Lost 3 parts (1p1u1w) 3432 | -8/Materials | Discovered new exit (range 5) 3440 | -8/Materials | Entered Factory 3440 | -7/Factory | Evolved 2 slots: Utility x1, Weapon x1 3462 | -7/Factory | Build established: Scavenger-Tank 3573 | -7/Factory | Allied Derelicts emerged from ambush trap array 4258 | -7/Factory | Discovered new exit (range 9) 4561 | -7/Factory | Repaired Hvy. Armor Plating 4600 | -7/Factory | Repaired Hvy. Armor Plating 4633 | -7/Factory | Repaired Imp. Treads 4673 | -7/Factory | Build established: Tank 4685 | -7/Factory | Repaired Adv. Heat Sink 4712 | -7/Factory | Repaired Wheel 6233 | -7/Factory | Discovered new exit (range 4) 6243 | -7/Factory | Garrison activated, responded to threat 6246 | -7/Factory | Entered another Factory area 6246 | -6/Factory | Evolved 2 slots: Utility x2 6569 | -6/Factory | Build established: Hacker-Tank 6844 | -6/Factory | Repaired Hvy. Armor Plating 6937 | -6/Factory | Discovered new exit (range 13) 7060 | -6/Factory | Garrison activated, responded to threat 7116 | -6/Factory | Destroyed 7 combat bots 7143 | -6/Factory | Build established: Scavenger-Tank 7302 | -6/Factory | Lost 3 parts (2n1u) 7442 | -6/Factory | Sucked down chute 7442 | -6/Factory | Entered Waste 7450 | -6/Waste | Spotted C-40 Crusher 7457 | -6/Waste | EMP discharged 7457 | -6/Waste | System corruption reached 10% 7468 | -6/Waste | Spotted C-40 Crusher 7489 | -6/Waste | Spotted C-40 Crusher 7511 | -6/Waste | Crushed by Compactor (1 part destroyed) 7512 | -6/Waste | Crushed by Compactor (1 part destroyed, 2 dropped) 7515 | -6/Waste | Crushed by Compactor (1 part destroyed, 1 dropped) 7529 | -6/Waste | Spotted C-40 Crusher 7535 | -6/Waste | Spotted C-40 Crusher 7546 | -6/Waste | Lost 5 parts (2n2u1w) 7557 | -6/Waste | EMP discharged 7558 | -6/Waste | Spotted C-40 Crusher 7597 | -6/Waste | Discovered new exit (range 12) 7612 | -6/Waste | Entered Factory 8022 | -6/Factory | Discovered new exit (range 3) 8030 | -6/Factory | Identified exit to Lower Caves 8059 | -6/Factory | Build established: Hacker-Gunner 8210 | -6/Factory | Repaired Arm. Huge Wheel 8463 | -6/Factory | Core integrity fell below 50% 8712 | -6/Factory | Lost 4 parts (1u3w) 9042 | -6/Factory | Core integrity fell below 20% 9084 | -6/Factory | Lost 4 parts (1n1u2w) 9176 | -6/Factory | Discovered new exit (range 10) 9186 | -6/Factory | Identified exit to Extension 9362 | -6/Factory | First assault squad dispatched 9375 | -6/Factory | Build established: Scavenger-Gunner 9575 | -6/Factory | Destroyed by L-41 Fighter with Axe Last Messages --------------- 09541_ K-01 Serf cleans the Neutrino Reactor. 09545_ R-10 Processor collects Lgt. Treads. 09546_ K-01 Serf cleans the Neutrino Reactor. 09548_ R-10 Processor collects Carbon-fiber Leg. 09549_ Triggered Alarm Trap. 09549_ An alarm sounds. 09549_ ALERT: Alarm triggered, dispatching investigation squad. 09550_ K-01 Serf cleans the Neutrino Reactor. 09551_ U-05 Engineer lays Concrete. 09552_ R-10 Processor collects Mace. 09553_ K-01 Serf cleans the Neutrino Reactor. 09553_ Arm. Huge Wheel destroyed. 09555_ U-05 Engineer lays Concrete. 09555_ K-01 Serf cleans the Matter Pump. 09557_ U-05 Engineer lays Concrete. 09558_ R-10 Processor collects Lgt. Treads. 09559_ U-05 Engineer lays Concrete. 09568_ U-05 Engineer builds a Door. Map ----- +----------------------------------------------------+ | ????????????###"#?# """ """ ! # ????????????# | | ????????????# # """ """ # ????????????? | | ????????????# # """ """ # ?????????????? | | ????????????# !#[ # ?????????????? | | ????????????# ! [/* "" "" # ?????????????? | | ????????????# #! "F "" # ?????????????? | | ????????????# # """"" ! # ?????????????? | | ????????????# ?# ######### # ?????????????? | | ????????????####### #! # #+########??????? | | ????????????# # # ! # ######?? | | ????????????#"" + + + |= | | ????????????#""" ### """ # ##?????? | | ????????????#"R #?# """ ######## ###??????? | | ????????????#""" #?#! """ #??????# #????????? | | ????????????#"" #?# #??????# #????????? | | ????????????# #?#########??????# #????????? | | ????????????# ! #?######?????????# #????????? | | ????????????#######?# /// T #??????# #????????? | | ????????????????????# // #??????# #????????? | | ????????????????????# // ######?# #????????? | | ????????????????????# [# ?# #????????? | | ???????????????????## #! # #????????? | | ???????????????????# """ # !!= # ##???????? | | ????????????????????# """"" # !=! + +???????? | | ????????????????????# """"" # !=! # ##???????? | | ????????????????????# Y l@ # # #????????? | | ????????????????????# """ ######?# #????????? | | ????????????????????#g""""" #??? ?# #??????"?? | | ????????????????????#g""""" #? # ##????? ?? | | ????????????????????# # ?# +????? ?? | | ????????????????????# """ # ?# #????#+#? | | ????????????????????#g""""" # # ####?# #? | | ?????????????????#??# """"" # + #? | | ????????????# ??? # ####+###+##+####### #? | | ????????????# ##/####### # ## #? | | ????????????# # ## #? | | ????????????# # """ """ ## #? | | ????????????# # """ """ ##=#? | | ????????????# """ """ """ """ # """ """ ##=#? | | ????????????# """ """ """ """ # ##%#? | | ????????????# """ """ """ """ # = !# ## | | ????????????# %= ############ ## | | ????????? %% % | | ????????? %" #####+##############+## | | ?????????????############+#### %% = #??# | | ??????????????????????? ?# """ """ #??# | | ??????????????????????# # """"""" #??# | | ??????????????????????# # """"""" #??# | | ??????????????????????# # """"""" #??# | | ??????????????????????# # #??# | +----------------------------------------------------+ Best States ------------- Heat Dissipation 75 Coolant Potential 50 Energy Generation 31 Energy Capacity 310 Matter Stores 300 Matter Capacity 550 Sight Range 16 Robot Scan Range 16 Terrain Scan Density 10 Jamming Range 12 Corruption Containment 16 Armor Coverage 600 Evasion (%) 55 Recoil Reduction 4 Offensive Hacking 20 Defensive Hacking 10 Item Schematics ----------------- Adv. Treads | -7/Factory | Scanalyzed Huge Storage Unit | -7/Factory | Scanalyzed Hvy. Armor Plating | -7/Factory | Scanalyzed Disposable Heat Sink | -7/Factory | Scanalyzed Hcp. Matter Pod | -7/Factory | Scanalyzed Hrd. Medium Armor Plating | -7/Factory | Scanalyzed Hacking Suite | -7/Factory | Scanalyzed Plasma Cutter | -7/Factory | Scanalyzed Arm. Huge Wheel | -6/Factory | Scanalyzed Adv. Targeting Computer | -6/Factory | Scanalyzed Arm. Treads | -6/Factory | Scanalyzed Matter Compressor | -6/Factory | Scanalyzed Hrd. Heavy Armor Plating | -6/Factory | Scanalyzed System Guard | -6/Factory | Scanalyzed Triangulator | -6/Factory | Scanalyzed Robot Schematics ------------------ None Fabricated ------------ Nothing Alien Tech Used ----------------- None Achievements -------------- Total Silence Challenges ------------ None Game ------ Seed SigixMatterLattice Manual? 0 Play Time 01:15:10 Cumulative 147.5 hours Start 2024.05.03 @ 12:05:31 End 2024.05.03 @ 13:36:04 Sessions 1 Manual Loads 0 Difficulty Rogue Special Mode None Game No. 288 Rogue 288 Adventurer 0 Explorer 0 Win Type - Total 0 Types 0/0/0/0/0/0/0/0/0 Lore% 36 Gallery% 49 Achievement% 36 Wizard Run 0 Options --------- Layout 1 ASCII 0 Keyboard 0 Movement Mouse Keybinds 0 Fullscreen 1 Font 24/Smallcaps Map View 50x40 Zoom Use 0% Tactical HUD 1 Map Filters NONE Filters NONE Steam 1 RUN: 6bb62efc-6d26-42fe-a715-afdcf55b9563